[Event "Early-Titled-Tuesday-Blitz-May-14-2024"]
[Site "Chess.com"]
[Date "2024.05.14"]
[Round "11"]
[White "patzer-reloaded"]
[Black "teresin05"]
[Result "0-1"]
[WhiteElo "2388"]
[BlackElo "2284"]
[TimeControl "180+1"]
[EndTime "10:09:17 PDT"]
[Termination "teresin05 won on time"]

1. d3 {[%clk 0:02:59.7]} 1... d5 {[%clk 0:02:55.7]} 2. Nf3 {[%clk 0:02:59.7]}
2... Nf6 {[%clk 0:02:55.4]} 3. g3 {[%clk 0:03:00.4]} 3... Bg4 {[%clk 0:02:51.8]}
4. Bg2 {[%clk 0:03:00.7]} 4... c6 {[%clk 0:02:50.2]} 5. O-O {[%clk 0:02:58.6]}
5... e6 {[%clk 0:02:50.1]} 6. c4 {[%clk 0:02:58.8]} 6... Be7 {[%clk 0:02:47]} 7.
cxd5 {[%clk 0:02:58.2]} 7... exd5 {[%clk 0:02:46.6]} 8. h3 {[%clk 0:02:56.1]}
8... Bxf3 {[%clk 0:02:43.9]} 9. Bxf3 {[%clk 0:02:55.6]} 9... O-O {[%clk
0:02:43.2]} 10. d4 {[%clk 0:02:52.6]} 10... Nbd7 {[%clk 0:02:39.9]} 11. Nc3
{[%clk 0:02:51.8]} 11... Re8 {[%clk 0:02:35.5]} 12. Bf4 {[%clk 0:02:49.3]} 12...
Bf8 {[%clk 0:02:30.7]} 13. Qb3 {[%clk 0:02:45.3]} 13... Qb6 {[%clk 0:02:29.6]}
14. h4 {[%clk 0:02:19.5]} 14... Ne4 {[%clk 0:02:09.6]} 15. Qxb6 {[%clk
0:02:10.6]} 15... Nxb6 {[%clk 0:02:02.9]} 16. Nxe4 {[%clk 0:02:11.5]} 16... dxe4
{[%clk 0:02:03]} 17. Bg2 {[%clk 0:02:11.5]} 17... Rad8 {[%clk 0:01:58]} 18. e3
{[%clk 0:02:10.8]} 18... Nd5 {[%clk 0:01:56.3]} 19. a3 {[%clk 0:02:02.4]} 19...
c5 {[%clk 0:01:51.1]} 20. dxc5 {[%clk 0:01:58]} 20... Bxc5 {[%clk 0:01:44.4]}
21. Rac1 {[%clk 0:01:56.4]} 21... Bb6 {[%clk 0:01:37.3]} 22. Rc4 {[%clk
0:01:45.5]} 22... f5 {[%clk 0:01:31.7]} 23. Bh3 {[%clk 0:01:17.6]} 23... Nxf4
{[%clk 0:01:25.4]} 24. gxf4 {[%clk 0:01:17]} 24... g6 {[%clk 0:01:23.6]} 25. h5
{[%clk 0:01:16.4]} 25... Rd2 {[%clk 0:01:15.8]} 26. b4 {[%clk 0:01:15.8]} 26...
Red8 {[%clk 0:01:11.7]} 27. a4 {[%clk 0:01:13.8]} 27... a5 {[%clk 0:01:05.8]}
28. h6 {[%clk 0:00:56]} 28... Kf7 {[%clk 0:00:55.6]} 29. Rb1 {[%clk 0:00:29.5]}
29... Rd1+ {[%clk 0:00:41.7]} 30. Rxd1 {[%clk 0:00:29.4]} 30... Rxd1+ {[%clk
0:00:42.4]} 31. Bf1 {[%clk 0:00:28.9]} 31... Rd7 {[%clk 0:00:37.7]} 32. bxa5
{[%clk 0:00:26.4]} 32... Bxa5 {[%clk 0:00:38.6]} 33. Rc8 {[%clk 0:00:26.5]}
33... Bb4 {[%clk 0:00:31.9]} 34. Bc4+ {[%clk 0:00:22.6]} 34... Kf6 {[%clk
0:00:20.6]} 35. Rh8 {[%clk 0:00:21.8]} 35... Rc7 {[%clk 0:00:16.3]} 36. Bg8
{[%clk 0:00:18.1]} 36... Bf8 {[%clk 0:00:16.6]} 37. Bxh7 {[%clk 0:00:12.7]}
37... Bxh6 {[%clk 0:00:16.5]} 38. Bg8 {[%clk 0:00:11.1]} 38... Bg7 {[%clk
0:00:15.4]} 39. Rh7 {[%clk 0:00:05.6]} 39... Rc8 {[%clk 0:00:15.2]} 40. Bd5
{[%clk 0:00:04.8]} 40... b6 {[%clk 0:00:14.7]} 41. Kg2 {[%clk 0:00:04.6]} 41...
Rd8 {[%clk 0:00:14.1]} 42. Bc6 {[%clk 0:00:04]} 42... Rc8 {[%clk 0:00:13.8]} 43.
Bb5 {[%clk 0:00:04.1]} 43... Rd8 {[%clk 0:00:10.1]} 44. Rh1 {[%clk 0:00:05]}
44... Rc8 {[%clk 0:00:07.6]} 45. Rd1 {[%clk 0:00:04.9]} 45... Bf8 {[%clk
0:00:05.8]} 46. Rd7 {[%clk 0:00:05.3]} 46... Bc5 {[%clk 0:00:04.9]} 47. Bc4
{[%clk 0:00:04.6]} 47... Rf8 {[%clk 0:00:04]} 48. Bd5 {[%clk 0:00:03.4]} 48...
Bb4 {[%clk 0:00:02.5]} 49. Rb7 {[%clk 0:00:03.2]} 49... Bc5 {[%clk 0:00:03]} 50.
Kf1 {[%clk 0:00:03.5]} 50... g5 {[%clk 0:00:02.8]} 51. fxg5+ {[%clk 0:00:02.6]}
51... Kxg5 {[%clk 0:00:03.7]} 52. Rd7 {[%clk 0:00:02.6]} 52... Kf6 {[%clk
0:00:03.9]} 53. Ke2 {[%clk 0:00:02.8]} 53... Kg5 {[%clk 0:00:04.2]} 54. Rg7+
{[%clk 0:00:02.6]} 54... Kf6 {[%clk 0:00:04.2]} 55. Rb7 {[%clk 0:00:03.4]} 55...
Ke5 {[%clk 0:00:04.5]} 56. Bc4 {[%clk 0:00:02.7]} 56... f4 {[%clk 0:00:04.8]}
57. exf4+ {[%clk 0:00:00.7]} 57... Rxf4 {[%clk 0:00:05.7]} 58. Kf1 {[%clk
0:00:00.6]} 58... Rxf2+ {[%clk 0:00:05.7]} 59. Ke1 {[%clk 0:00:01.5]} 59... Rc2
{[%clk 0:00:05.7]} 60. Bb5 {[%clk 0:00:01.7]} 60... Kd4 {[%clk 0:00:06]} 61. Kd1
{[%clk 0:00:01.3]} 61... Rb2 {[%clk 0:00:05.6]} 62. Rd7+ {[%clk 0:00:02.2]}
62... Ke3 {[%clk 0:00:05.6]} 63. Rh7 {[%clk 0:00:01.2]} 63... Rb1+ {[%clk
0:00:05.5]} 64. Kc2 {[%clk 0:00:01.3]} 64... Rg1 {[%clk 0:00:04.9]} 65. Rh3+
{[%clk 0:00:02.2]} 65... Kf4 {[%clk 0:00:04.7]} 66. Rh4+ {[%clk 0:00:02.2]}
66... Kf3 {[%clk 0:00:01.7]} 67. Rh3+ {[%clk 0:00:02.5]} 67... Kg4 {[%clk
0:00:01.9]} 68. Rc3 {[%clk 0:00:02.2]} 68... e3 {[%clk 0:00:01.8]} 0-1

[Event "Early-Titled-Tuesday-Blitz-May-14-2024"]
[Site "Chess.com"]
[Date "2024.05.14"]
[Round "11"]
[White "DACF2905"]
[Black "NCchamp"]
[Result "1/2-1/2"]
[WhiteElo "2419"]
[BlackElo "2314"]
[TimeControl "180+1"]
[EndTime "10:09:23 PDT"]
[Termination "Game drawn - insufficient material"]

1. e4 {[%clk 0:01:54.7]} 1... c6 {[%clk 0:02:59.1]} 2. d4 {[%clk 0:01:54.1]}
2... d5 {[%clk 0:03:00]} 3. exd5 {[%clk 0:01:54.1]} 3... cxd5 {[%clk 0:03:00.9]}
4. Bd3 {[%clk 0:01:53.8]} 4... Nc6 {[%clk 0:03:01.2]} 5. Ne2 {[%clk 0:01:53.8]}
5... Nf6 {[%clk 0:03:01.1]} 6. c3 {[%clk 0:01:54.2]} 6... g6 {[%clk 0:02:59.1]}
7. Bf4 {[%clk 0:01:54.2]} 7... Bf5 {[%clk 0:02:58.6]} 8. O-O {[%clk 0:01:53.8]}
8... e6 {[%clk 0:02:56.3]} 9. Ng3 {[%clk 0:01:53.4]} 9... Bxd3 {[%clk 0:02:54]}
10. Qxd3 {[%clk 0:01:52.4]} 10... Be7 {[%clk 0:02:52.3]} 11. Bh6 {[%clk
0:01:51.2]} 11... Qc7 {[%clk 0:02:42.6]} 12. h3 {[%clk 0:01:47]} 12... Rg8
{[%clk 0:02:37.9]} 13. Be3 {[%clk 0:01:34.3]} 13... a6 {[%clk 0:02:37.1]} 14. a4
{[%clk 0:01:33.8]} 14... Na5 {[%clk 0:02:35.3]} 15. Nd2 {[%clk 0:01:32.9]} 15...
Rc8 {[%clk 0:02:31.9]} 16. Rfe1 {[%clk 0:01:27.3]} 16... Nc4 {[%clk 0:02:27.6]}
17. Rab1 {[%clk 0:01:24.1]} 17... Nd7 {[%clk 0:02:14.2]} 18. b3 {[%clk
0:01:20.5]} 18... Nxe3 {[%clk 0:01:56.7]} 19. Rxe3 {[%clk 0:01:20]} 19... Bg5
{[%clk 0:01:31.8]} 20. Rf3 {[%clk 0:01:20.1]} 20... h5 {[%clk 0:01:31.7]} 21.
Ngf1 {[%clk 0:01:15.4]} 21... Nb8 {[%clk 0:01:12.7]} 22. c4 {[%clk 0:01:14.8]}
22... Rd8 {[%clk 0:01:09.4]} 23. Re1 {[%clk 0:01:10.8]} 23... Kf8 {[%clk
0:01:07.5]} 24. c5 {[%clk 0:01:08.1]} 24... Kg7 {[%clk 0:01:07]} 25. b4 {[%clk
0:00:59.8]} 25... b6 {[%clk 0:01:04.3]} 26. Nb3 {[%clk 0:00:54.1]} 26... bxc5
{[%clk 0:00:44.7]} 27. bxc5 {[%clk 0:00:49.5]} 27... Nc6 {[%clk 0:00:37.4]} 28.
Qxa6 {[%clk 0:00:47.1]} 28... Ra8 {[%clk 0:00:37.2]} 29. Qe2 {[%clk 0:00:35.2]}
29... Rxa4 {[%clk 0:00:36.4]} 30. Rb1 {[%clk 0:00:34.1]} 30... Rb8 {[%clk
0:00:34.7]} 31. Rd3 {[%clk 0:00:31.5]} 31... Rab4 {[%clk 0:00:33.6]} 32. Qc2
{[%clk 0:00:28.6]} 32... Bf6 {[%clk 0:00:29.5]} 33. Rbd1 {[%clk 0:00:23.6]}
33... Qb7 {[%clk 0:00:26.7]} 34. Nfd2 {[%clk 0:00:22]} 34... Qb5 {[%clk
0:00:22.1]} 35. Qc3 {[%clk 0:00:18.4]} 35... Ra8 {[%clk 0:00:17.4]} 36. Re1
{[%clk 0:00:17.6]} 36... Raa4 {[%clk 0:00:16.8]} 37. g3 {[%clk 0:00:16]} 37...
Nxd4 {[%clk 0:00:12.5]} 38. Nxd4 {[%clk 0:00:15.5]} 38... Rxd4 {[%clk
0:00:12.2]} 39. Rxd4 {[%clk 0:00:15.2]} 39... Bxd4 {[%clk 0:00:11.1]} 40. Qf3
{[%clk 0:00:14.9]} 40... Bxc5 {[%clk 0:00:09.1]} 41. Re2 {[%clk 0:00:14.6]}
41... Bd4 {[%clk 0:00:08.8]} 42. Nf1 {[%clk 0:00:14.7]} 42... Rb4 {[%clk
0:00:06.9]} 43. Kg2 {[%clk 0:00:15]} 43... Rb3 {[%clk 0:00:06.8]} 44. Ne3 {[%clk
0:00:14.7]} 44... Bxe3 {[%clk 0:00:05]} 45. Rxe3 {[%clk 0:00:14.6]} 45... Rxe3
{[%clk 0:00:04.4]} 46. Qxe3 {[%clk 0:00:15.5]} 46... Qb2 {[%clk 0:00:04.5]} 47.
h4 {[%clk 0:00:15.1]} 47... Qf6 {[%clk 0:00:03.9]} 48. Kh3 {[%clk 0:00:14.8]}
48... d4 {[%clk 0:00:03.4]} 49. Qe2 {[%clk 0:00:14.3]} 49... Qf5+ {[%clk
0:00:03.2]} 50. Kg2 {[%clk 0:00:14.4]} 50... d3 {[%clk 0:00:03.4]} 51. Qe3
{[%clk 0:00:14.5]} 51... e5 {[%clk 0:00:03.2]} 52. f3 {[%clk 0:00:14.7]} 52...
Qe6 {[%clk 0:00:03.1]} 53. Qxd3 {[%clk 0:00:14.3]} 53... Qc6 {[%clk 0:00:01.9]}
54. Qe3 {[%clk 0:00:14.1]} 54... f6 {[%clk 0:00:01.7]} 55. Qf2 {[%clk
0:00:14.3]} 55... Qd5 {[%clk 0:00:01.5]} 56. Kh2 {[%clk 0:00:14.7]} 56... Kh6
{[%clk 0:00:01.6]} 57. Kg2 {[%clk 0:00:15.1]} 57... Kg7 {[%clk 0:00:02]} 58. Kh2
{[%clk 0:00:15.6]} 58... f5 {[%clk 0:00:02.7]} 59. Kg2 {[%clk 0:00:16]} 59... e4
{[%clk 0:00:03.2]} 60. fxe4 {[%clk 0:00:16.4]} 60... fxe4 {[%clk 0:00:03.7]} 61.
Qe3 {[%clk 0:00:17]} 61... Qe5 {[%clk 0:00:03.1]} 62. Kf2 {[%clk 0:00:16.9]}
62... Kf6 {[%clk 0:00:03.3]} 63. Kg2 {[%clk 0:00:16.6]} 63... Qf5 {[%clk
0:00:03.1]} 64. Kh2 {[%clk 0:00:15.4]} 64... Qf3 {[%clk 0:00:02.5]} 65. Qb6+
{[%clk 0:00:13.4]} 65... Ke5 {[%clk 0:00:02.3]} 66. Qc7+ {[%clk 0:00:13.4]}
66... Kd5 {[%clk 0:00:02.2]} 67. Qd7+ {[%clk 0:00:13.4]} 67... Kc4 {[%clk
0:00:02.4]} 68. Qe6+ {[%clk 0:00:13.5]} 68... Kd3 {[%clk 0:00:02.5]} 69. Qxg6
{[%clk 0:00:13.6]} 69... Ke2 {[%clk 0:00:02.4]} 70. Qa6+ {[%clk 0:00:12.1]}
70... Kf2 {[%clk 0:00:00.7]} 71. Qa2+ {[%clk 0:00:12.1]} 71... Qe2 {[%clk
0:00:00.7]} 72. Qxe2+ {[%clk 0:00:10.6]} 72... Kxe2 {[%clk 0:00:01.6]} 73. g4
{[%clk 0:00:11]} 73... hxg4 {[%clk 0:00:01.8]} 74. h5 {[%clk 0:00:11.5]} 74...
Kf3 {[%clk 0:00:02.5]} 75. h6 {[%clk 0:00:11.5]} 75... e3 {[%clk 0:00:03]} 76.
h7 {[%clk 0:00:11.3]} 76... e2 {[%clk 0:00:03.4]} 77. h8=Q {[%clk 0:00:11.5]}
77... g3+ {[%clk 0:00:03.6]} 78. Kh3 {[%clk 0:00:10.7]} 78... e1=Q {[%clk
0:00:04.5]} 79. Qf6+ {[%clk 0:00:10.3]} 79... Ke2 {[%clk 0:00:04.2]} 80. Qe5+
{[%clk 0:00:10.3]} 80... Kf2 {[%clk 0:00:04.3]} 81. Qxe1+ {[%clk 0:00:11.2]}
81... Kxe1 {[%clk 0:00:04.5]} 82. Kxg3 {[%clk 0:00:12.1]} 1/2-1/2

[Event "Early-Titled-Tuesday-Blitz-May-14-2024"]
[Site "Chess.com"]
[Date "2024.05.14"]
[Round "11"]
[White "Sofia_Blokhin"]
[Black "chesslh93"]
[Result "0-1"]
[WhiteElo "2249"]
[BlackElo "2335"]
[TimeControl "180+1"]
[EndTime "10:09:25 PDT"]
[Termination "chesslh93 won by resignation"]

1. d4 {[%clk 0:03:00.9]} 1... d5 {[%clk 0:02:42.7]} 2. c4 {[%clk 0:03:00.2]}
2... e6 {[%clk 0:02:39.7]} 3. Nc3 {[%clk 0:03:00]} 3... Nf6 {[%clk 0:02:40.2]}
4. Nf3 {[%clk 0:02:59.7]} 4... Be7 {[%clk 0:02:39.7]} 5. e3 {[%clk 0:02:59.6]}
5... O-O {[%clk 0:02:39.4]} 6. Bd3 {[%clk 0:02:59.7]} 6... dxc4 {[%clk
0:02:37.8]} 7. Bxc4 {[%clk 0:02:59.5]} 7... c5 {[%clk 0:02:38.7]} 8. O-O {[%clk
0:02:58.6]} 8... Nc6 {[%clk 0:02:39]} 9. a3 {[%clk 0:02:44]} 9... a6 {[%clk
0:02:37]} 10. Ba2 {[%clk 0:02:39]} 10... b5 {[%clk 0:02:33.7]} 11. dxc5 {[%clk
0:02:27]} 11... Bxc5 {[%clk 0:02:29.5]} 12. Qe2 {[%clk 0:02:21.6]} 12... Bb7
{[%clk 0:02:28.9]} 13. b4 {[%clk 0:02:20.6]} 13... Be7 {[%clk 0:02:27.2]} 14.
Rd1 {[%clk 0:02:20.2]} 14... Qb6 {[%clk 0:02:22.4]} 15. Bb2 {[%clk 0:02:19]}
15... Rfd8 {[%clk 0:02:20.9]} 16. Rac1 {[%clk 0:02:07.2]} 16... Rxd1+ {[%clk
0:02:20]} 17. Rxd1 {[%clk 0:02:07.3]} 17... Rd8 {[%clk 0:02:20.9]} 18. Rxd8+
{[%clk 0:01:56.3]} 18... Qxd8 {[%clk 0:02:21.8]} 19. h3 {[%clk 0:01:51.2]} 19...
Nb8 {[%clk 0:02:14.4]} 20. Nd4 {[%clk 0:01:44.8]} 20... Nc6 {[%clk 0:02:09.7]}
21. Nxc6 {[%clk 0:01:40]} 21... Bxc6 {[%clk 0:02:10.6]} 22. Nb1 {[%clk
0:01:31.9]} 22... Bd5 {[%clk 0:02:08.5]} 23. Bxd5 {[%clk 0:01:26.1]} 23... Qxd5
{[%clk 0:02:08]} 24. Qd2 {[%clk 0:01:21.5]} 24... Qxd2 {[%clk 0:01:49.4]} 25.
Nxd2 {[%clk 0:01:18.3]} 25... Nd5 {[%clk 0:01:49.5]} 26. Nb3 {[%clk 0:01:13.8]}
26... Nb6 {[%clk 0:01:47.8]} 27. Na5 {[%clk 0:01:12.7]} 27... f6 {[%clk
0:01:39.5]} 28. Nc6 {[%clk 0:01:12.1]} 28... Bd6 {[%clk 0:01:39.1]} 29. Nd4
{[%clk 0:01:02.6]} 29... Kf7 {[%clk 0:01:38.2]} 30. Nb3 {[%clk 0:00:59]} 30...
Nc4 {[%clk 0:01:36.7]} 31. Bc1 {[%clk 0:00:58.9]} 31... Ke8 {[%clk 0:01:29.3]}
32. Kf1 {[%clk 0:00:58.3]} 32... Kd7 {[%clk 0:01:28.8]} 33. Ke2 {[%clk
0:00:58.5]} 33... Kc6 {[%clk 0:01:26.7]} 34. Kd3 {[%clk 0:00:58.8]} 34... f5
{[%clk 0:01:26.6]} 35. f3 {[%clk 0:00:56]} 35... g6 {[%clk 0:01:26.5]} 36. Nd4+
{[%clk 0:00:53.8]} 36... Kd7 {[%clk 0:01:25.1]} 37. Kc3 {[%clk 0:00:42.8]} 37...
Be5 {[%clk 0:01:18.5]} 38. a4 {[%clk 0:00:35.4]} 38... Bxd4+ {[%clk 0:01:13.9]}
39. Kxd4 {[%clk 0:00:23.1]} 39... Kc6 {[%clk 0:01:14.1]} 40. a5 {[%clk
0:00:15.9]} 40... e5+ {[%clk 0:00:56.7]} 41. Kd3 {[%clk 0:00:15.5]} 41... Kd5
{[%clk 0:00:42.2]} 42. e4+ {[%clk 0:00:15.1]} 42... Ke6 {[%clk 0:00:41.5]} 43.
Kc3 {[%clk 0:00:10.3]} 43... Kf6 {[%clk 0:00:33.8]} 44. Kd3 {[%clk 0:00:08.5]}
44... f4 {[%clk 0:00:28]} 45. Bd2 {[%clk 0:00:05.5]} 45... Kg5 {[%clk
0:00:24.6]} 46. Bc3 {[%clk 0:00:04.8]} 46... Kf6 {[%clk 0:00:23]} 47. Ke2 {[%clk
0:00:02.3]} 47... Ne3 {[%clk 0:00:19.8]} 48. Kd3 {[%clk 0:00:02.7]} 48... Nxg2
{[%clk 0:00:18.4]} 49. Ke2 {[%clk 0:00:03]} 49... Ne3 {[%clk 0:00:17.7]} 50. Kf2
{[%clk 0:00:03.3]} 50... Nc4 {[%clk 0:00:17.3]} 51. Ke2 {[%clk 0:00:03.4]} 51...
Ke6 {[%clk 0:00:13.2]} 52. Be1 {[%clk 0:00:03.7]} 52... g5 {[%clk 0:00:11.9]}
53. Kd3 {[%clk 0:00:04]} 53... h5 {[%clk 0:00:11.4]} 54. Kc3 {[%clk 0:00:04.3]}
54... Ne3 {[%clk 0:00:08.8]} 55. Kd3 {[%clk 0:00:04]} 55... Ng2 {[%clk
0:00:08.1]} 56. Bf2 {[%clk 0:00:03.4]} 56... g4 {[%clk 0:00:05.2]} 57. fxg4
{[%clk 0:00:02]} 57... hxg4 {[%clk 0:00:06.1]} 58. hxg4 {[%clk 0:00:02.5]} 58...
Kf6 {[%clk 0:00:06.1]} 59. Ke2 {[%clk 0:00:02.9]} 59... Kg5 {[%clk 0:00:05.3]}
60. Kf3 {[%clk 0:00:03.5]} 60... Ne3 {[%clk 0:00:05.8]} 61. Bxe3 {[%clk
0:00:03.3]} 61... fxe3 {[%clk 0:00:06.7]} 62. Kxe3 {[%clk 0:00:02.9]} 62... Kxg4
{[%clk 0:00:07.1]} 63. Kd3 {[%clk 0:00:01.3]} 63... Kf3 {[%clk 0:00:07.3]} 64.
Kd2 {[%clk 0:00:01.3]} 64... Kxe4 {[%clk 0:00:08.2]} 65. Ke2 {[%clk 0:00:01.9]}
65... Kd4 {[%clk 0:00:08.7]} 66. Kd2 {[%clk 0:00:02.5]} 66... Kc4 {[%clk
0:00:09]} 67. Ke3 {[%clk 0:00:03.1]} 67... Kxb4 {[%clk 0:00:09.9]} 68. Ke4
{[%clk 0:00:03.7]} 68... Kxa5 {[%clk 0:00:10.8]} 69. Kxe5 {[%clk 0:00:04.5]}
69... Kb4 {[%clk 0:00:11.7]} 0-1

[Event "Early-Titled-Tuesday-Blitz-May-14-2024"]
[Site "Chess.com"]
[Date "2024.05.14"]
[Round "11"]
[White "VirtualCoach"]
[Black "maracayo"]
[Result "1/2-1/2"]
[WhiteElo "2212"]
[BlackElo "2361"]
[TimeControl "180+1"]
[EndTime "10:09:30 PDT"]
[Termination "Game drawn - insufficient material"]

1. e4 {[%clk 0:03:00.7]} 1... d6 {[%clk 0:03:00]} 2. d4 {[%clk 0:02:59.4]} 2...
Nf6 {[%clk 0:03:00.5]} 3. Nc3 {[%clk 0:03:00]} 3... c6 {[%clk 0:03:00.7]} 4. Be3
{[%clk 0:02:56.8]} 4... Qa5 {[%clk 0:03:00.5]} 5. Qd2 {[%clk 0:02:56.2]} 5... e5
{[%clk 0:03:00.6]} 6. f3 {[%clk 0:02:50.9]} 6... Be7 {[%clk 0:03:00.3]} 7. Nge2
{[%clk 0:02:50.6]} 7... O-O {[%clk 0:02:58.6]} 8. g4 {[%clk 0:02:49]} 8... b5
{[%clk 0:02:56.7]} 9. h4 {[%clk 0:02:48.8]} 9... b4 {[%clk 0:02:56]} 10. Nb1
{[%clk 0:02:46.2]} 10... Bxg4 {[%clk 0:02:50.3]} 11. fxg4 {[%clk 0:02:38.6]}
11... Nxe4 {[%clk 0:02:49.1]} 12. Qd3 {[%clk 0:02:33.2]} 12... d5 {[%clk
0:02:39.3]} 13. Bg2 {[%clk 0:02:25.9]} 13... b3+ {[%clk 0:02:08.9]} 14. Nd2
{[%clk 0:02:22.3]} 14... bxc2 {[%clk 0:01:36.7]} 15. Qxc2 {[%clk 0:02:15.2]}
15... exd4 {[%clk 0:01:22.5]} 16. Bxd4 {[%clk 0:02:11.6]} 16... Nxd2 {[%clk
0:01:04.9]} 17. Qxd2 {[%clk 0:02:09.9]} 17... Qd8 {[%clk 0:00:56.2]} 18. g5
{[%clk 0:01:58.6]} 18... Nd7 {[%clk 0:00:56.6]} 19. O-O {[%clk 0:01:52.2]} 19...
Bc5 {[%clk 0:00:44.6]} 20. Qc3 {[%clk 0:01:50.5]} 20... Qb6 {[%clk 0:00:39.8]}
21. Rac1 {[%clk 0:01:44]} 21... Bxd4+ {[%clk 0:00:33.1]} 22. Qxd4 {[%clk
0:01:44.5]} 22... Qa6 {[%clk 0:00:32.3]} 23. Nf4 {[%clk 0:01:39.8]} 23... Rab8
{[%clk 0:00:22.7]} 24. Nh5 {[%clk 0:01:39]} 24... Qb6 {[%clk 0:00:22.8]} 25.
Qxb6 {[%clk 0:01:33.9]} 25... Rxb6 {[%clk 0:00:23.7]} 26. Rc2 {[%clk 0:01:31.3]}
26... Re8 {[%clk 0:00:22.9]} 27. b3 {[%clk 0:01:30.7]} 27... a5 {[%clk
0:00:18.6]} 28. Rfc1 {[%clk 0:01:30.6]} 28... Ne5 {[%clk 0:00:17.7]} 29. Nf4
{[%clk 0:01:27.7]} 29... Kf8 {[%clk 0:00:15.8]} 30. Re2 {[%clk 0:01:24.3]} 30...
Rb4 {[%clk 0:00:15.4]} 31. Rce1 {[%clk 0:01:14.1]} 31... Rxf4 {[%clk 0:00:14.7]}
32. Rxe5 {[%clk 0:01:14.3]} 32... Rxe5 {[%clk 0:00:15.6]} 33. Rxe5 {[%clk
0:01:14.9]} 33... Rxh4 {[%clk 0:00:16.5]} 34. Kf2 {[%clk 0:01:09]} 34... a4
{[%clk 0:00:16.9]} 35. Kg3 {[%clk 0:01:01.2]} 35... Rb4 {[%clk 0:00:16.4]} 36.
Re3 {[%clk 0:00:53.8]} 36... axb3 {[%clk 0:00:14.6]} 37. axb3 {[%clk 0:00:54.7]}
37... f6 {[%clk 0:00:12.9]} 38. gxf6 {[%clk 0:00:53.3]} 38... gxf6 {[%clk
0:00:13.8]} 39. Bh3 {[%clk 0:00:49.6]} 39... Kf7 {[%clk 0:00:14]} 40. Bd7 {[%clk
0:00:49.1]} 40... Rb6 {[%clk 0:00:12.8]} 41. Rc3 {[%clk 0:00:48.1]} 41... d4
{[%clk 0:00:10.9]} 42. Rd3 {[%clk 0:00:46]} 42... c5 {[%clk 0:00:11]} 43. Kf4
{[%clk 0:00:42.1]} 43... Ke7 {[%clk 0:00:09.4]} 44. Bf5 {[%clk 0:00:42.1]} 44...
h6 {[%clk 0:00:08.8]} 45. Ke4 {[%clk 0:00:41.8]} 45... Kd6 {[%clk 0:00:09.7]}
46. Bh7 {[%clk 0:00:38.5]} 46... Rb8 {[%clk 0:00:09.7]} 47. Rh3 {[%clk 0:00:36]}
47... Re8+ {[%clk 0:00:09.6]} 48. Kd3 {[%clk 0:00:24.4]} 48... Re7 {[%clk
0:00:09.8]} 49. Be4 {[%clk 0:00:22.1]} 49... Ke5 {[%clk 0:00:07]} 50. Rxh6
{[%clk 0:00:20.1]} 50... f5 {[%clk 0:00:07.2]} 51. Rh5 {[%clk 0:00:19.5]} 51...
Rf7 {[%clk 0:00:07.4]} 52. Bf3 {[%clk 0:00:18.9]} 52... Kf4 {[%clk 0:00:07.2]}
53. Be2 {[%clk 0:00:18.5]} 53... Rb7 {[%clk 0:00:06.8]} 54. Kc4 {[%clk
0:00:18.1]} 54... Rb4+ {[%clk 0:00:06.8]} 55. Kxc5 {[%clk 0:00:18.5]} 55... Rxb3
{[%clk 0:00:07.1]} 56. Kxd4 {[%clk 0:00:18.8]} 56... Rb4+ {[%clk 0:00:06.8]} 57.
Bc4 {[%clk 0:00:18.8]} 57... Kg4 {[%clk 0:00:05.7]} 58. Rh7 {[%clk 0:00:18.2]}
58... f4 {[%clk 0:00:05.9]} 59. Rg7+ {[%clk 0:00:17.9]} 59... Kf3 {[%clk
0:00:06]} 60. Kd3 {[%clk 0:00:17.8]} 60... Rxc4 {[%clk 0:00:05.8]} 61. Kxc4
{[%clk 0:00:17.4]} 61... Ke2 {[%clk 0:00:06.2]} 62. Re7+ {[%clk 0:00:15.5]}
62... Kd2 {[%clk 0:00:04.6]} 63. Kd4 {[%clk 0:00:10.5]} 63... f3 {[%clk
0:00:04.2]} 64. Ke4 {[%clk 0:00:10.6]} 64... f2 {[%clk 0:00:03.5]} 65. Rf7
{[%clk 0:00:11.2]} 65... Ke2 {[%clk 0:00:03.7]} 66. Rxf2+ {[%clk 0:00:11.8]}
66... Kxf2 {[%clk 0:00:03.5]} 1/2-1/2